fUSD/lending_fUSD_20250214
["ID","MTS","AMOUNT","RATE_DAILY","PERIOD"]
[353108819,1739563850398,-784.42,0.0001378,2]
[353108820,1739563850410,-500.0,0.0001378,2]
[353108821,1739563850425,-500.0,0.0001378,2]
[353108822,1739563850438,-512.91333741,0.0001378,2]
[353108823,1739563850450,-1808.0,0.0001378,2]
[353108824,1739563850464,-500.0,0.0001378,2]
[353108825,1739563850476,-1280.46,0.0001378,2]
[353108826,1739563850489,-505.50636559,0.0001378,2]
[353108827,1739563850500,-500.0,0.0001378,2]
[353108828,1739563850513,-500.0,0.0001378,2]
[353108829,1739563850525,-607.26,0.0001378,2]
[353108830,1739563850540,-500.0,0.0001378,2]
[353108831,1739563850553,-500.0,0.0001378,2]
[353108832,1739563850565,-500.0,0.0001378,2]
[353108833,1739563850578,-500.0,0.0001378,2]
[353108834,1739563850591,-1169.14,0.0001378,2]
[353108835,1739563850602,-504.32845242,0.0001378,2]
[353108836,1739563850614,-519.02099116,0.0001378,2]
[353108837,1739563850626,-500.0,0.0001378,2]
[353108838,1739563850638,-500.0,0.0001378,2]
[353108839,1739563850651,-500.0,0.0001378,2]
[353108840,1739563850666,-500.0,0.0001378,2]
[353108841,1739563850679,-1613.47,0.0001378,2]
[353108842,1739563850689,-500.0,0.0001378,2]
[353108843,1739563850700,-500.0,0.0001378,2]
[353108844,1739563850710,-500.0,0.0001378,2]
[353108845,1739563850722,-500.0,0.0001378,2]
[353108846,1739563850734,-500.0,0.0001378,2]
[353108847,1739563850747,-1107.07,0.0001378,2]
[353108848,1739563850762,-232.93952156,0.0001378,2]
[353108849,1739563850773,-967.62,0.0001378,2]
[353108850,1739563850785,-754.08,0.0001378,2]
[353108851,1739563850796,-500.0,0.0001378,2]
[353108852,1739563850808,-606.58,0.0001378,2]
[353108853,1739563850820,-500.0,0.0001378,2]
[353108854,1739563850831,-500.0,0.0001378,2]
[353108855,1739563850843,-500.0,0.0001378,2]
[353108856,1739563850854,-500.0,0.0001378,2]
[353108857,1739563850865,-1281.16,0.0001378,2]
[353108858,1739563850877,-500.0,0.0001378,2]
[353108859,1739563850888,-500.0,0.0001378,2]
[353108860,1739563850901,-663.92,0.0001378,2]
[353108861,1739563850914,-500.0,0.0001378,2]
[353108862,1739563850926,-500.0,0.0001378,2]
[353108863,1739563850938,-279.92080725,0.0001378,2]
[353108864,1739563850949,-500.0,0.0001378,2]
[353108865,1739563850960,-501.36019967,0.0001378,2]
[353108866,1739563850972,-500.0,0.0001378,2]
[353108867,1739563850983,-854.68,0.0001378,2]
[353108868,1739563850994,-500.0,0.0001378,2]
[353108869,1739563851006,-500.0,0.0001378,2]
[353108870,1739563851017,-500.0,0.0001378,2]
[353108871,1739563851028,-897.34,0.0001378,2]
[353108872,1739563851040,-335.78620468,0.0001378,2]
[353108873,1739563851051,-1076.86,0.0001378,2]
[353108874,1739563851062,-1280.76,0.0001378,2]
[353108875,1739563851073,-500.0,0.0001378,2]
[353108876,1739563851085,-500.386715,0.0001378,2]
[353108877,1739563851097,-612.38,0.0001378,2]
[353108878,1739563851108,-181.07626112,0.0001378,2]
[353108879,1739563851119,-500.0,0.0001378,2]
[353108880,1739563851131,-500.0,0.0001378,2]
[353108881,1739563851142,-500.0,0.0001378,2]
[353108882,1739563851154,-603.04,0.0001378,2]
[353108883,1739563851165,-500.0,0.0001378,2]
[353108884,1739563851176,-500.0,0.0001378,2]
[353108885,1739563851187,-1338.87,0.0001378,2]
[353108886,1739563851198,-500.0,0.0001378,2]
[353108887,1739563851209,-607.73,0.0001378,2]
[353108888,1739563851220,-504.48737868,0.0001378,2]
[353108889,1739563851231,-500.0,0.0001378,2]
[353108890,1739563851242,-500.0,0.0001378,2]
[353108891,1739563851253,-509.94580186,0.0001378,2]
[353108892,1739563851264,-543.93821262,0.0001378,2]
[353108893,1739563851275,-934.27,0.0001378,2]
[353108894,1739563851286,-500.0,0.0001378,2]
[353108895,1739563851298,-500.0,0.0001378,2]
[353108896,1739563851309,-500.0,0.0001378,2]
[353108897,1739563851321,-500.0,0.0001378,2]
[353108898,1739563851332,-500.0,0.0001378,2]
[353108899,1739563851343,-500.0,0.0001378,2]
[353108900,1739563851354,-365.90987712,0.0001378,2]
[353108901,1739563851367,-577.53,0.0001378,2]
[353108902,1739563851379,-1672.07,0.0001378,2]
[353108903,1739563851389,-500.0,0.0001378,2]
[353108904,1739563851401,-907.46,0.0001378,2]
[353108905,1739563851412,-500.0,0.0001378,2]
[353108906,1739563851423,-500.0,0.0001378,2]
[353108907,1739563851434,-150.18286318,0.0001378,2]
[353108908,1739563851446,-1068.63,0.0001378,2]
[353108909,1739563851458,-575.49,0.0001378,2]
[353108910,1739563851470,-530.2646776,0.0001378,2]
[353108911,1739563851481,-668.43,0.0001378,2]
[353108912,1739563851492,-500.0,0.0001378,2]
[353108913,1739563851503,-500.0,0.0001378,2]
[353108914,1739563851515,-572.87,0.0001378,2]
[353108915,1739563851525,-738.25,0.0001378,2]
[353108916,1739563851538,-500.0,0.0001378,2]
[353108917,1739563851551,-249.62094679,0.0001378,2]
[353108918,1739563851562,-500.0,0.0001378,2]
[353108919,1739563851574,-500.0,0.0001378,2]
[353108920,1739563851586,-1304.96,0.0001378,2]
[353108921,1739563851597,-500.0,0.0001378,2]
[353108922,1739563851610,-303.02427647,0.0001378,2]
[353108923,1739563851622,-883.57,0.0001378,2]
[353108924,1739563851633,-500.0,0.0001378,2]
[353108925,1739563851644,-500.0,0.0001378,2]
[353108926,1739563851663,-500.0,0.0001378,2]
[353108927,1739563851674,-500.0,0.0001378,2]
[353108928,1739563851687,-618.98,0.0001378,2]
[353108929,1739563851699,-500.0,0.0001378,2]
[353108930,1739563851711,-500.0,0.0001378,2]
[353108931,1739563851722,-500.0,0.0001378,2]
[353108932,1739563851734,-573.63,0.0001378,2]
[353108933,1739563851746,-500.0,0.0001378,2]
[353108934,1739563851759,-640.68,0.0001378,2]
[353108935,1739563851770,-500.0,0.0001378,2]
[353108936,1739563851783,-500.0,0.0001378,2]
[353108937,1739563851795,-500.0,0.0001378,2]
[353108938,1739563851807,-500.0,0.0001378,2]
[353108939,1739563851819,-500.0,0.0001378,2]
[353108940,1739563851831,-500.0,0.0001378,2]
[353108941,1739563851842,-500.0,0.0001378,2]
[353108942,1739563851853,-500.0,0.0001378,2]
[353108943,1739563851864,-698.97,0.0001378,2]
[353108944,1739563851875,-991.46,0.0001378,2]
[353108945,1739563851889,-500.0,0.0001378,2]
[353108946,1739563851902,-984.87,0.0001378,2]
[353108947,1739563851915,-1209.25,0.0001378,2]
[353108948,1739563851927,-525.62,0.0001378,2]
[353108949,1739563851939,-500.0,0.0001378,2]
[353108950,1739563851951,-500.0,0.0001378,2]
[353108951,1739563851962,-500.0,0.0001378,2]
[353108952,1739563851976,-500.0,0.0001378,2]
[353108953,1739563851989,-536.36,0.0001378,2]
[353108954,1739563852000,-877.73,0.0001378,2]
[353108955,1739563852011,-1372.53,0.0001378,2]
[353108956,1739563852022,-1335.45,0.0001378,2]
[353108957,1739563852034,-500.0,0.0001378,2]
[353108958,1739563852045,-500.0,0.0001378,2]
[353108959,1739563852057,-575.3331938,0.0001378,2]
[353108960,1739563852068,-519.4,0.0001378,2]
[353108961,1739563852080,-500.0,0.0001378,2]
[353108962,1739563852091,-500.0,0.0001378,2]
[353108963,1739563852103,-500.0,0.0001378,2]
[353108964,1739563852114,-500.0,0.0001378,2]
[353108965,1739563852125,-814.24,0.0001378,2]
[353108966,1739563852137,-893.93,0.0001378,2]
[353108967,1739563852149,-499.88674965,0.0001378,2]
[353108968,1739563852160,-500.0,0.0001378,2]
[353108969,1739563852172,-499.49225078,0.0001378,2]
[353108970,1739563852184,-500.0,0.0001378,2]
[353108971,1739563852195,-980.55,0.0001378,2]
[353108972,1739563852206,-500.0,0.0001378,2]
[353108973,1739563852218,-500.0,0.0001378,2]
[353108974,1739563852229,-500.0,0.0001378,2]
[353108975,1739563852241,-505.79485674,0.0001378,2]
[353108976,1739563852252,-501.05466414,0.0001378,2]
[353108977,1739563852264,-2647.93,0.0001378,2]
[353108978,1739563852275,-501.49381222,0.0001378,2]
[353108979,1739563852287,-500.0,0.0001378,2]
[353108980,1739563852299,-500.0,0.0001378,2]
[353108981,1739563852310,-624.08,0.0001378,2]
[353108982,1739563852322,-500.0,0.0001378,2]
[353108983,1739563852334,-500.0,0.0001378,2]
[353108984,1739563852346,-706.55,0.0001378,2]
[353108985,1739563852358,-500.0,0.0001378,2]
[353108986,1739563852372,-585.87,0.0001378,2]
[353108987,1739563852383,-1360.96,0.0001378,2]
[353108988,1739563852395,-503.05429106,0.0001378,2]
[353108989,1739563852409,-164.03712,0.0001378,2]
[353108990,1739563852421,-579.67,0.0001378,2]
[353108991,1739563852434,-500.0,0.0001378,2]
[353108992,1739563852448,-500.0,0.0001378,2]
[353108993,1739563852460,-500.0,0.0001378,2]
[353108994,1739563852472,-500.0,0.0001378,2]
[353108995,1739563852484,-902.8,0.0001378,2]
[353108996,1739563852496,-500.0,0.0001378,2]
[353108997,1739563852508,-500.0,0.0001378,2]
[353108998,1739563852519,-610.71,0.0001378,2]
[353108999,1739563852530,-501.31759376,0.0001378,2]
[353109000,1739563852541,-500.0,0.0001378,2]
[353109001,1739563852552,-500.0,0.0001378,2]
[353109002,1739563852564,-1001.64,0.0001378,2]
[353109003,1739563852575,-500.0,0.0001378,2]
[353109004,1739563852586,-776.75,0.0001378,2]
[353109005,1739563852599,-987.29,0.0001378,2]
[353109006,1739563852611,-500.0,0.0001378,2]
[353109007,1739563852623,-500.0,0.0001378,2]
[353109008,1739563852635,-919.94,0.0001378,2]
[353109009,1739563852647,-496.5,0.0001378,2]
[353109010,1739563852659,-728.31,0.0001378,2]
[353109011,1739563852672,-975.51,0.0001378,2]
[353109012,1739563852684,-500.0,0.0001378,2]
[353109013,1739563852694,-581.83,0.0001378,2]
[353109014,1739563852705,-1504.69,0.0001378,2]
[353109015,1739563852717,-500.0,0.0001378,2]
[353109016,1739563852728,-500.0,0.0001378,2]
[353109017,1739563852740,-501.00166784,0.0001378,2]
[353109018,1739563852753,-500.0,0.0001378,2]
[353109019,1739563852764,-500.0,0.0001378,2]
[353109020,1739563852775,-500.0,0.0001378,2]
[353109021,1739563852787,-500.0,0.0001378,2]
[353109022,1739563852798,-500.0,0.0001378,2]
[353109023,1739563852809,-500.0,0.0001378,2]
[353109024,1739563852820,-506.02571495,0.0001378,2]
[353109025,1739563852839,-1633.3,0.0001378,2]
[353109026,1739563852853,-518.74,0.0001378,2]
[353109027,1739563852868,-500.29677664,0.0001378,2]
[353109028,1739563852881,-501.15569946,0.0001378,2]
[353109029,1739563852895,-622.4,0.0001378,2]
[353109030,1739563852909,-500.0,0.0001378,2]
[353109031,1739563852921,-500.0,0.0001378,2]
[353109032,1739563852934,-823.68,0.0001378,2]
[353109033,1739563852947,-848.64,0.0001378,2]
[353109034,1739563852960,-500.0,0.0001378,2]
[353109035,1739563852972,-500.0,0.0001378,2]
[353109036,1739563852984,-500.0,0.0001378,2]
[353109037,1739563852998,-500.0,0.0001378,2]
[353109038,1739563853016,-1282.24,0.0001378,2]
[353109039,1739563853029,-500.0,0.0001378,2]
[353109040,1739563853041,-500.0,0.0001378,2]
[353109041,1739563853054,-504.21759815,0.0001378,2]
[353109042,1739563853066,-1711.64,0.0001378,2]
[353109043,1739563853079,-585.21345404,0.0001378,2]
[353109044,1739563853092,-500.0,0.0001378,2]
[353109045,1739563853105,-500.0,0.0001378,2]
[353109046,1739563853116,-500.0,0.0001378,2]
[353109047,1739563853129,-787.78,0.0001378,2]
[353109048,1739563853141,-500.0,0.0001378,2]
[353109049,1739563853154,-500.0,0.0001378,2]
[353109050,1739563853166,-500.0,0.0001378,2]
[353109051,1739563853179,-498.96009593,0.0001378,2]
[353109052,1739563853191,-500.0,0.0001378,2]
[353109053,1739563853203,-500.0,0.0001378,2]
[353109054,1739563853215,-500.0,0.0001378,2]
[353109055,1739563853228,-878.18,0.0001378,2]
[353109056,1739563853240,-500.0,0.0001378,2]
[353109057,1739563853254,-500.0,0.0001378,2]
[353109058,1739563853266,-500.0,0.0001378,2]
[353109059,1739563853278,-503.27488822,0.0001378,2]
[353109060,1739563853290,-500.0,0.0001378,2]
[353109061,1739563853301,-663.1,0.0001378,2]
[353109062,1739563853313,-436.65,0.0001378,2]
[353109063,1739563853330,-500.0,0.0001378,2]
[353109064,1739563853343,-500.0,0.0001378,2]
[353109065,1739563853356,-504.92776716,0.0001378,2]
[353109066,1739563853373,-1374.74,0.0001378,2]
[353109067,1739563853385,-500.0,0.0001378,2]
[353109068,1739563853401,-500.0,0.0001378,2]
[353109069,1739563853413,-600.26785902,0.0001378,2]
[353109070,1739563853426,-1402.88,0.0001378,2]
[353109071,1739563853438,-1965.42,0.0001378,2]
[353109072,1739563853452,-500.0,0.0001378,2]
[353109073,1739563853464,-500.0,0.0001378,2]
[353109074,1739563853477,-560.57978945,0.0001378,2]
[353109075,1739563853489,-822.86,0.0001378,2]
[353109076,1739563853501,-635.77,0.0001378,2]
[353109077,1739563853513,-1627.29,0.0001378,2]
[353109078,1739563853525,-500.0,0.0001378,2]
[353109079,1739563853538,-500.0,0.0001378,2]
[353109080,1739563853551,-500.0,0.0001378,2]
[353109081,1739563853564,-500.0,0.0001378,2]
[353109082,1739563853577,-968.89,0.0001378,2]
[353109083,1739563853589,-577.1,0.0001378,2]
[353109084,1739563853602,-500.0,0.0001378,2]
[353109085,1739563853615,-655.39,0.0001378,2]
[353109086,1739563853627,-504.1193116,0.0001378,2]
[353109087,1739563853638,-500.0,0.0001378,2]
[353109088,1739563853650,-814.03,0.0001378,2]
[353109089,1739563853664,-748.91,0.0001378,2]
[353109090,1739563853678,-500.0,0.0001378,2]
[353109091,1739563853689,-500.0,0.0001378,2]
[353109092,1739563854134,-735.84,0.0001378,2]
[353109093,1739563854241,-1560.32,0.0001378,2]
[353109094,1739563854260,-1807.63,0.0001378,2]
[353109095,1739563854270,-500.0,0.0001378,2]
[353109096,1739563854281,-2596.59,0.0001378,2]
[353109097,1739563854290,-500.0,0.0001378,2]
[353109098,1739563854300,-541.78930358,0.0001378,2]
[353109099,1739563854310,-763.37,0.0001378,2]
[353109100,1739563854320,-500.0,0.0001378,2]
[353109101,1739563854330,-507.67772549,0.0001378,2]
[353109102,1739563854340,-787.22,0.0001378,2]
[353109103,1739563854349,-500.0,0.0001378,2]
[353109104,1739563854359,-500.0,0.0001378,2]
[353109105,1739563854372,-500.0,0.0001378,2]
[353109106,1739563854382,-500.0,0.0001378,2]
[353109107,1739563854393,-500.0,0.0001378,2]
[353109108,1739563854403,-1229.5,0.0001378,2]
[353109109,1739563854415,-500.0,0.0001378,2]
[353109110,1739563854426,-1636.31,0.0001378,2]
[353109111,1739563854436,-790.1,0.0001378,2]
[353109112,1739563854450,-500.0,0.0001378,2]
[353109113,1739563854460,-500.0,0.0001378,2]
[353109114,1739563854470,-2044.686389,0.0001378,2]
[353109115,1739563854480,-500.0,0.0001378,2]
[353109116,1739563854490,-500.0,0.0001378,2]
[353109117,1739563854500,-1878.57,0.0001378,2]
[353109118,1739563854511,-707.21,0.0001378,2]
[353109119,1739563854521,-500.0,0.0001378,2]
[353109120,1739563854531,-557.69388946,0.0001378,2]
[353109121,1739563854541,-500.0,0.0001378,2]
[353109122,1739563854551,-953.31,0.0001378,2]
[353109123,1739563854561,-500.0,0.0001378,2]
[353109124,1739563854570,-1018.1,0.0001378,2]
[353109125,1739563854580,-1364.44,0.0001378,2]
[353109126,1739563854590,-1211.82,0.0001378,2]
[353109127,1739563854601,-661.68,0.0001378,2]
[353109128,1739563854611,-437.38672466,0.0001378,2]
[353109129,1739563854621,-500.0,0.0001378,2]
[353109130,1739563854630,-500.0,0.0001378,2]
[353109131,1739563854640,-207.0254268,0.0001378,2]
[353109132,1739563854649,-4284.85,0.0001378,2]
[353109133,1739563854659,-500.0,0.0001378,2]
[353109134,1739563854669,-3602.81,0.0001378,2]
[353109135,1739563854679,-1055.89,0.0001378,2]
[353109136,1739563854689,-1822.84,0.0001378,2]
[353109137,1739563854699,-500.0,0.0001378,2]
[353109138,1739563854708,-1380.9,0.0001378,2]
[353109139,1739563854719,-521.88,0.0001378,2]
[353109140,1739563854730,-500.0,0.0001378,2]
[353109141,1739563854741,-500.0,0.0001378,2]
[353109142,1739563854751,-500.0,0.0001378,2]
[353109143,1739563854763,-500.0,0.0001378,2]
[353109144,1739563854773,-500.0,0.0001378,2]
[353109145,1739563854783,-500.0,0.0001378,2]
[353109146,1739563854794,-2099.924062,0.0001378,2]
[353109147,1739563854803,-672.2,0.0001378,2]
[353109148,1739563854814,-1817.13,0.0001378,2]
[353109149,1739563854824,-500.0,0.0001378,2]
[353109150,1739563854834,-569.83,0.0001378,2]
[353109151,1739563854844,-500.0,0.0001378,2]
[353109152,1739563854854,-509.46,0.0001378,2]
[353109153,1739563854865,-1973.5,0.0001378,2]
[353109154,1739563854875,-2885.76,0.0001378,2]
[353109155,1739563854884,-1999.09,0.0001378,2]
[353109156,1739563854895,-500.0,0.0001378,2]
[353109157,1739563854905,-1754.23,0.0001378,2]
[353109158,1739563854916,-722.58,0.0001378,2]
[353109159,1739563854926,-3163.54,0.0001378,2]
[353109160,1739563854936,-777.3,0.0001378,2]
[353109161,1739563854946,-500.0,0.0001378,2]
[353109162,1739563854956,-385.9398909,0.0001378,2]
[353109163,1739563854966,-500.0,0.0001378,2]
[353109164,1739563854976,-1081.68,0.0001378,2]
[353109165,1739563854986,-500.0,0.0001378,2]
[353109166,1739563854996,-3073.51,0.0001378,2]
[353109167,1739563855008,-1849.21,0.0001378,2]
[353109168,1739563855017,-1876.88,0.0001378,2]
[353109169,1739563855027,-1636.36,0.0001378,2]
[353109170,1739563855037,-511.62953308,0.0001378,2]
[353109171,1739563855046,-684.82,0.0001378,2]
[353109172,1739563855058,-500.0,0.0001378,2]
[353109173,1739563855071,-3451.8,0.0001378,2]
[353109174,1739563855082,-1258.75,0.0001378,2]
[353109175,1739563855091,-516.9183405,0.0001378,2]
[353109176,1739563855102,-2313.09,0.0001378,2]
[353109177,1739563855113,-525.63,0.0001378,2]
[353109178,1739563855123,-500.0,0.0001378,2]
[353109179,1739563855133,-500.0,0.0001378,2]
[353109180,1739563855143,-500.0,0.0001378,2]
[353109181,1739563855153,-2440.88,0.0001378,2]
[353109182,1739563855162,-594.57,0.0001378,2]
[353109183,1739563855174,-731.72,0.0001378,2]
[353109184,1739563855185,-641.14,0.0001378,2]
[353109185,1739563855195,-2262.39,0.0001378,2]
[353109186,1739563855206,-500.0,0.0001378,2]
[353109187,1739563855216,-506.01415286,0.0001378,2]
[353109188,1739563855226,-500.0,0.0001378,2]
[353109189,1739563855236,-512.68498858,0.0001378,2]
[353109190,1739563855246,-500.0,0.0001378,2]
[353109191,1739563855257,-2756.09,0.0001378,2]
[353109192,1739563855268,-500.0,0.0001378,2]
[353109193,1739563855278,-565.96,0.0001378,2]
[353109194,1739563855287,-500.0,0.0001378,2]
[353109195,1739563855298,-500.0,0.0001378,2]
[353109196,1739563855308,-500.0,0.0001378,2]
[353109197,1739563855317,-500.0,0.0001378,2]
[353109198,1739563855327,-500.0,0.0001378,2]
[353109199,1739563855336,-1602.34,0.0001378,2]
[353109200,1739563855346,-500.0,0.0001378,2]
[353109201,1739563855355,-500.0,0.0001378,2]
[353109202,1739563855367,-500.0,0.0001378,2]
[353109203,1739563855379,-1958.29,0.0001378,2]
[353109204,1739563855389,-500.0,0.0001378,2]
[353109205,1739563855399,-2803.98,0.0001378,2]
[353109206,1739563855410,-500.0,0.0001378,2]
[353109207,1739563855420,-500.0,0.0001378,2]
[353109208,1739563855430,-835.64,0.0001378,2]
[353109209,1739563855439,-500.0,0.0001378,2]
[353109210,1739563855452,-500.0,0.0001378,2]
[353109211,1739563855462,-500.0,0.0001378,2]
[353109212,1739563855472,-4057.02,0.0001378,2]
[353109213,1739563855482,-2038.26,0.0001378,2]
[353109214,1739563855491,-1055.1,0.0001378,2]
[353109215,1739563855502,-1332.83,0.0001378,2]
[353109216,1739563855512,-500.0,0.0001378,2]
[353109217,1739563855521,-1763.2,0.0001378,2]
[353109218,1739563855531,-500.0,0.0001378,2]
[353109219,1739563855541,-500.0,0.0001378,2]
[353109220,1739563855550,-500.0,0.0001378,2]
[353109221,1739563855560,-3381.25,0.0001378,2]
[353109222,1739563855570,-500.0,0.0001378,2]
[353109223,1739563855580,-500.0,0.0001378,2]
[353109224,1739563855590,-500.0,0.0001378,2]
[353109225,1739563855599,-761.43,0.0001378,2]
[353109226,1739563855609,-500.0,0.0001378,2]
[353109227,1739563855618,-2360.83,0.0001378,2]
[353109228,1739563855628,-3279.48,0.0001378,2]
[353109229,1739563855637,-1107.76,0.0001378,2]
[353109230,1739563855647,-1488.96,0.0001378,2]
[353109231,1739563855657,-1740.63,0.0001378,2]
[353109232,1739563855667,-371.17430774,0.0001378,2]
[353109233,1739563855676,-500.0,0.0001378,2]
[353109234,1739563855685,-2916.96,0.0001378,2]
[353109235,1739563855695,-500.0,0.0001378,2]
[353109236,1739563855705,-500.0,0.0001378,2]
[353109237,1739563855715,-500.0,0.0001378,2]
[353109238,1739563855726,-500.0,0.0001378,2]
[353109239,1739563855736,-500.0,0.0001378,2]
[353109240,1739563855746,-500.0,0.0001378,2]
[353109241,1739563855758,-1806.9,0.0001378,2]
[353109242,1739563855768,-500.0,0.0001378,2]
[353109243,1739563855778,-5082.1,0.0001378,2]
[353109244,1739563855788,-713.2,0.0001378,2]
[353109245,1739563855798,-500.0,0.0001378,2]
[353109246,1739563855809,-500.0,0.0001378,2]
[353109247,1739563855819,-2918.13,0.0001378,2]
[353109248,1739563855829,-6582.72,0.0001378,2]
[353109249,1739563855840,-1998.38,0.0001378,2]
[353109250,1739563855850,-514.06982591,0.0001378,2]
[353109251,1739563855860,-500.0,0.0001378,2]
[353109252,1739563855870,-500.0,0.0001378,2]
[353109253,1739563855881,-913.59,0.0001378,2]
[353109254,1739563855892,-500.0,0.0001378,2]
[353109255,1739563855902,-3560.44,0.0001378,2]
[353109256,1739563855912,-500.0,0.0001378,2]
[353109257,1739563855922,-500.0,0.0001378,2]
[353109258,1739563855932,-2986.15,0.0001378,2]
[353109259,1739563855943,-3033.09,0.0001378,2]
[353109260,1739563855953,-2105.33,0.0001378,2]
[353109261,1739563855963,-500.0,0.0001378,2]
[353109262,1739563855973,-5014.83,0.0001378,2]
[353109263,1739563855983,-1872.73,0.0001378,2]
[353109264,1739563855993,-4493.7,0.0001378,2]
[353109265,1739563856004,-1363.47,0.0001378,2]
[353109266,1739563856015,-500.0,0.0001378,2]
[353109267,1739563856025,-2267.94,0.0001378,2]
[353109268,1739563856035,-1318.39,0.0001378,2]
[353109269,1739563856046,-524.87,0.0001378,2]
[353109270,1739563856057,-749.42,0.0001378,2]
[353109271,1739563856067,-500.0,0.0001378,2]
[353109272,1739563856077,-500.0,0.0001378,2]
[353109273,1739563856088,-500.0,0.0001378,2]
[353109274,1739563856098,-500.0,0.0001378,2]
[353109275,1739563856109,-488.28550074,0.0001378,2]
[353109276,1739563856118,-1469.98,0.0001378,2]
[353109277,1739563856129,-1576.63,0.0001378,2]
[353109278,1739563856140,-500.0,0.0001378,2]
[353109279,1739563856150,-3629.53,0.0001378,2]
[353109280,1739563856160,-1206.13,0.0001378,2]
[353109281,1739563856170,-500.0,0.0001378,2]
[353109282,1739563856181,-500.0,0.0001378,2]
[353109283,1739563856191,-946.36,0.0001378,2]
[353109284,1739563856200,-500.0,0.0001378,2]
[353109285,1739563856211,-537.54,0.0001378,2]
[353109286,1739563856222,-509.96600735,0.0001378,2]
[353109287,1739563856232,-3171.97,0.0001378,2]
[353109288,1739563856243,-500.0,0.0001378,2]
[353109289,1739563856254,-500.0,0.0001378,2]
[353109290,1739563856264,-500.0,0.0001378,2]
[353109291,1739563856275,-500.0,0.0001378,2]
[353109292,1739563856285,-2626.49,0.0001378,2]
[353109293,1739563856295,-503.49908451,0.0001378,2]
[353109294,1739563856305,-588.06,0.0001378,2]
[353109295,1739563856315,-773.79,0.0001378,2]
[353109296,1739563856325,-500.0,0.0001378,2]
[353109297,1739563856335,-2568.77,0.0001378,2]
[353109298,1739563856345,-500.0,0.0001378,2]
[353109299,1739563856355,-1944.99,0.0001378,2]
[353109300,1739563856370,-500.0,0.0001378,2]
[353109301,1739563856382,-587.60173632,0.0001378,2]
[353109302,1739563856393,-4608.6,0.0001378,2]
[353109303,1739563856403,-500.0,0.0001378,2]
[353109304,1739563856413,-500.0,0.0001378,2]
[353109305,1739563856424,-500.0,0.0001378,2]
[353109306,1739563856434,-1710.92,0.0001378,2]
[353109307,1739563856445,-2526.46,0.0001378,2]
[353109308,1739563856457,-2579.87,0.0001378,2]
[353109309,1739563856467,-3705.69,0.0001378,2]
[353109310,1739563856478,-500.0,0.0001378,2]
[353109311,1739563856488,-500.0,0.0001378,2]
[353109312,1739563856499,-500.0,0.0001378,2]
[353109313,1739563856510,-500.0,0.0001378,2]
[353109314,1739563856520,-500.0,0.0001378,2]
[353109315,1739563856530,-500.0,0.0001378,2]
[353109316,1739563856540,-500.0,0.0001378,2]
[353109317,1739563856550,-500.0,0.0001378,2]
[353109318,1739563856560,-3939.13,0.0001378,2]